Cogmind - Beta 13 @@@ ROGUE MODE // 2024.05.30 @ 23:46:52 Player: Sionnis Result: Self-destructed Performance ------------- Evolutions (7) 3500 Regions Visited (10) 2000 Robots Destroyed (1) 5 Value Destroyed (2) 2 Prototype IDs (0) 0 Alien Tech Used (0) 0 Bonus (1470) 1470 TOTAL SCORE: 6977 Bonus ------- Pacifist 470 Entered DSFs 1000 Cogmind --------- Core Integrity 674/1300 Matter 260/300 Energy 100/100 System Corruption 4% Temperature Cool (0) Movement Core (50) Location -3/Research Parts ------- > --- POWER (1) -------- (None) > --- PROPULSION (8) --- (None) > --- UTILITY (10) ----- Hacking Suite > --- WEAPON (2) ------- (None) > --- INVENTORY (5) ---- Impulse Thruster Array Impulse Thruster Array Tiamat Bomb Trap Peak State ------------ > --- POWER ------------ (None) > --- PROPULSION ------- Cesium-ion Thruster Field Propulsion Drive Impulse Thruster Array Impulse Thruster Array Impulse Thruster Array > --- UTILITY ---------- Hacking Suite Hacking Suite Hacking Suite > --- WEAPON ----------- Mace > --- INVENTORY -------- Impulse Thruster Array Impulse Thruster Array Tiamat Bomb Trap [Rating: 71] Favorites ----------- Power Light Ion Engine Engine Light Ion Engine Propulsion VTOL Module Flight Unit VTOL Module Utility Hacking Suite Device ECM Suite Hackware Hacking Suite Protection Light Armor Plating Weapon Mace Impact Weapon Mace Build | -11 -10 -9 -8 -7 -7 -6 -5 -4 -4 -3 ------- Run | Yrd Mat Mat Mat Fac DSF Fac Fac Fac DSF Res Slots Evolved 14 | . . 2 2 2 . 2 2 2 . 2 Power . | . . . . . . . . . . . Propulsion 6 | . . 1 1 1 . 1 1 1 . . Utility 8 | . . 1 1 1 . 1 1 1 . 2 Weapon . | . . . . . . . . . . . Parts Attached 25 | 1 2 4 2 3 4 3 . . 5 1 Power 3 | 1 . . . 1 . 1 . . . . Engine 3 | 1 . . . 1 . 1 . . . . Core . | . . . . . . . . . . . Reactor . | . . . . . . . . . . . Propulsion 12 | . 2 1 2 1 . 1 . . 4 1 Treads . | . . . . . . . . . . . Leg . | . . . . . . . . . . . Wheel . | . . . . . . . . . . . Hover . | . . . . . . . . . . . Flight 12 | . 2 1 2 1 . 1 . . 4 1 Utility 7 | . . 1 . 1 4 1 . . . . Device 1 | . . . . . . 1 . . . . Storage . | . . . . . . . . . . . Processor . | . . . . . . . . . . . Hackware 3 | . . . . . 3 . . . . . Protection 3 | . . 1 . 1 1 . . . . . Artifact . | . . . . . . . . . . . Weapon 3 | . . 2 . . . . . . 1 . Energy Gun . | . . . . . . . . . . . Energy Cannon . | . . . . . . . . . . . Ballistic Gun . | . . . . . . . . . . . Ballistic Cannon . | . . . . . . . . . . . Launcher . | . . . . . . . . . . . Special Weapon . | . . . . . . . . . . . Impact Weapon 3 | . . 2 . . . . . . 1 . Slashing Weapon . | . . . . . . . . . . . Piercing Weapon . | . . . . . . . . . . . Special Melee Weapon . | . . . . . . . . . . . Unidentified Prototypes . | . . . . . . . . . . . Parts Lost 20 | . . . . . . 2 3 . 7 8 Power 2 | . . . . . . 1 1 . . . Propulsion 11 | . . . . . . 1 1 . 4 5 Utility 5 | . . . . . . . 1 . 2 2 Weapon 2 | . . . . . . . . . 1 1 Highest Loss Streak 11 | . . . . . . 1 4 . 11 8 To Critical Strikes 1 | . . . . . . . . . . 1 Average Slot Usage (%) 62 | . 32 66 72 72 79 97 74 . 45 31 Engine 4 | . 14 11 9 7 7 4 5 . . . Flight 27 | . 18 33 36 38 38 40 25 . 16 15 Device 1 | . . . . . . 6 5 . 3 . Hackware 10 | . . . . . 3 20 17 . 15 12 Protection 6 | . . 2 9 11 15 13 7 . . . Impact Weapon 10 | . . 19 18 15 15 13 11 . 8 2 Naked Turns . | . . . . . . . . . . . Heaviest Build 17 | 3 3 10 10 15 15 17 15 9 9 2 Greatest Support 58 | 3 8 12 17 22 22 26 22 18 58 39 Greatest Overweight (x) 1 | . . . . . . . . . 1 . Average Overweight (x) . | . . . . . . . . . . . Largest Inventory Capacity 5 | 5 5 5 5 5 5 5 5 5 5 5 Average Capacity 5 | 5 5 5 5 5 5 5 5 5 5 5 Most Carried 5 | . 2 3 5 5 5 4 2 2 5 5 Average Carried 3 | . . 1 3 4 5 2 2 2 2 5 Final Capacity 5 | 5 5 5 5 5 5 5 5 5 5 5 Final Carried 5 | . 2 3 5 5 5 2 2 2 5 5 Class Distribution -------------------- 31% | Hacker-Sprinter 31% | Hacker-Mutant 30% | Sprinter 6% | Mutant Dominant Class ---------------- Mutant | -10/Materials Sprinter | -9/Materials Sprinter | -8/Materials Sprinter | -7/Factory Sprinter | -7/DSF Hacker-Sprinter | -6/Factory Hacker-Sprinter | -5/Factory Hacker-Sprinter | -4/Factory Hacker-Sprinter | -4/DSF Hacker-Mutant | -3/Research Resources | -11 -10 -9 -8 -7 -7 -6 -5 -4 -4 -3 ----------- Run | Yrd Mat Mat Mat Fac DSF Fac Fac Fac DSF Res Matter Collected 324 | 134 . . 44 . . 115 . . 23 8 Remotely . | . . . . . . . . . . . Salvage Created 44 | . . . 44 . . . . . . . Parts 1 | . . . 1 . . . . . . . Haulers Intercepted 1 | . . . 1 . . . . . . . Recyclers Shooed . | . . . . . . . . . . . Parts Field Recycled . | . . . . . . . . . . . Retrieved Matter . | . . . . . . . . . . . Parts Self-Destructed . | . . . . . . . . . . . Prevented . | . . . . . . . . . . . Kills | -11 -10 -9 -8 -7 -7 -6 -5 -4 -4 -3 ------- Run | Yrd Mat Mat Mat Fac DSF Fac Fac Fac DSF Res Combat Hostiles Destroyed . | . . . . . . . . . . . Classes Destroyed 1 | . . . 1 . . . . . . . Hauler 1 | . . . 1 . . . . . . . Best Kill Streak 1 | . . . 1 . . . . . . . Combat Bots Only . | . . . . . . . . . . . Max Kills in Single Turn 1 | . . . 1 . . . . . . . Gunslinging . | . . . . . . . . . . . Exploded . | . . . . . . . . . . . Melee . | . . . . . . . . . . . Uniques/NPCs Destroyed . | . . . . . . . . . . . Combat | -11 -10 -9 -8 -7 -7 -6 -5 -4 -4 -3 -------- Run | Yrd Mat Mat Mat Fac DSF Fac Fac Fac DSF Res Hostile Shots Fired 298 | . . 13 . . 6 44 10 . 105 120 Missed 165 | . . 3 . . 5 23 3 . 63 68 Damage Taken 2769 | . . 137 . . 26 302 343 . 763 1198 Core 1255 | . . 48 . . . 52 100 . 429 626 Absorbed by Shields 105 | . . . . . . . . . 93 12 Core Remaining (%) 91 | 100 100 88 100 . 100 93 90 . 62 . Volleys Fired . | . . . . . . . . . . . Largest . | . . . . . . . . . . . Hottest . | . . . . . . . . . . . Shots Fired . | . . . . . . . . . . . Gun . | . . . . . . . . . . . Cannon . | . . . . . . . . . . . Launcher . | . . . . . . . . . . . Special . | . . . . . . . . . . . Kinetic . | . . . . . . . . . . . Thermal . | . . . . . . . . . . . Explosive . | . . . . . . . . . . . Electromagnetic . | . . . . . . . . . . . Robot Hit Streak . | . . . . . . . . . . . Robot Miss Streak . | . . . . . . . . . . . Penetration Max . | . . . . . . . . . . . Secondary Targets . | . . . . . . . . . . . Shots Hit Robots 5 | . . . 5 . . . . . . . Core Hits . | . . . . . . . . . . . Critical Kills . | . . . . . . . . . . . Critical Parts Destroyed 1 | . . . 1 . . . . . . . Critical Strikes 1 | . . . 1 . . . . . . . Smash 1 | . . . 1 . . . . . . . Melee Attacks 23 | . . 7 7 2 1 1 . . . 5 Impact 23 | . . 7 7 2 1 1 . . . 5 Slashing . | . . . . . . . . . . . Piercing . | . . . . . . . . . . . Sneak Attacks 1 | . . . 1 . . . . . . . Combat Hostiles . | . . . . . . . . . . . Follow-up Attacks . | . . . . . . . . . . . Damage Inflicted 177 | . . . 177 . . . . . . . Guns . | . . . . . . . . . . . Cannons . | . . . . . . . . . . . Explosions . | . . . . . . . . . . . Melee 177 | . . . 177 . . . . . . . Ramming . | . . . . . . . . . . . Kinetic . | . . . . . . . . . . . Thermal . | . . . . . . . . . . . Explosive . | . . . . . . . . . . . Electromagnetic . | . . . . . . . . . . . Impact 177 | . . . 177 . . . . . . . Slashing . | . . . . . . . . . . . Piercing . | . . . . . . . . . . . Highest Corruption 4 | . . 1 . . . . . . . 4 Average Corruption 1 | . . 1 . . . . . . . 1 Corruption Purged . | . . . . . . . . . . . Corruption Blocked . | . . . . . . . . . . . Effects 1 | . . . . . . . . . . 1 Matter Fused 1 | . . . . . . . . . . 1 Overload Shots . | . . . . . . . . . . . Overflow Damage 37 | . . . 37 . . . . . . . Projectiles . | . . . . . . . . . . . Explosions . | . . . . . . . . . . . Melee 37 | . . . 37 . . . . . . . Knockbacks . | . . . . . . . . . . . Impact . | . . . . . . . . . . . Kinetic . | . . . . . . . . . . . Secondary . | . . . . . . . . . . . Self-Inflicted Damage . | . . . . . . . . . . . Shots . | . . . . . . . . . . . Rammed . | . . . . . . . . . . . Targets Rammed . | . . . . . . . . . . . Kicked . | . . . . . . . . . . . Crushed . | . . . . . . . . . . . Highest Temperature 200 | . . 8 . 42 . 200 5 . . . Average Temperature 100 | . . 4 . 16 . 124 5 . . . Received Heat Transfer 189 | . . 57 . . . 84 18 . 12 18 Siege Activations . | . . . . . . . . . . . Robots Corrupted . | . . . . . . . . . . . Combat Hostiles . | . . . . . . . . . . . Parts Fried . | . . . . . . . . . . . Impact Corruptions 2 | . . . 2 . . . . . . . Robots Melted . | . . . . . . . . . . . Combat Hostiles . | . . . . . . . . . . . Parts Melted . | . . . . . . . . . . . Heat Transferred . | . . . . . . . . . . . Parts Sabotaged . | . . . . . . . . . . . Parts Stolen . | . . . . . . . . . . . Parts Stripped . | . . . . . . . . . . . Power Chain Reactions . | . . . . . . . . . . . Alert | -11 -10 -9 -8 -7 -7 -6 -5 -4 -4 -3 ------- Run | Yrd Mat Mat Mat Fac DSF Fac Fac Fac DSF Res Peak Influence 214 | . 21 28 19 15 56 197 91 37 27 214 Initial 91 | . . 8 11 8 10 29 91 37 27 . Average 53 | . 7 13 12 10 23 123 76 37 6 73 Maximum Alert Level 1 | . . . . . . . . . . 1 Low Security (%) 97 | 100 100 100 100 100 100 100 100 100 100 92 Level 1 2 | . . . . . . . . . . 7 Level 2 . | . . . . . . . . . . . Level 3 . | . . . . . . . . . . . Level 4 . | . . . . . . . . . . . Level 5 . | . . . . . . . . . . . High Security . | . . . . . . . . . . . Max Security . | . . . . . . . . . . . Squads Dispatched 8 | . . 1 . 1 1 1 . . . 4 Investigation 4 | . . 1 . 1 . 1 . . . 1 Extermination . | . . . . . . . . . . . Reinforcement 4 | . . . . . 1 . . . . 3 Assault . | . . . . . . . . . . . Garrison . | . . . . . . . . . . . Intercept . | . . . . . . . . . . . Searches Triggered . | . . . . . . . . . . . Construction Impeded . | . . . . . . . . . . . Haulers Reinforced . | . . . . . . . . . . . Active Scanning Responses . | . . . . . . . . . . . Cargo Convoy Interrupts . | . . . . . . . . . . . Stealth | -11 -10 -9 -8 -7 -7 -6 -5 -4 -4 -3 --------- Run | Yrd Mat Mat Mat Fac DSF Fac Fac Fac DSF Res Distress Signals 1 | . . . . . . . . . . 1 Communications Jammed . | . . . . . . . . . . . Distress Signals . | . . . . . . . . . . . Times Spotted 58 | . 1 5 . . 6 11 7 . 4 24 Peak Tracking Total 17 | . 1 5 2 . 4 8 5 . 3 17 Tactical Retreats 9 | . . . . . 2 2 1 . 1 3 Traps | -11 -10 -9 -8 -7 -7 -6 -5 -4 -4 -3 ------- Run | Yrd Mat Mat Mat Fac DSF Fac Fac Fac DSF Res Traps Triggered 10 | . . . . . 3 1 . . 4 2 Indirectly . | . . . . . . . . . . . Trap Hack Attempts . | . . . . . . . . . . . Triggered . | . . . . . . . . . . . Disarmed . | . . . . . . . . . . . Reprogrammed . | . . . . . . . . . . . Reused . | . . . . . . . . . . . Traps Extracted . | . . . . . . . . . . . Installed . | . . . . . . . . . . . Triggered . | . . . . . . . . . . . Most Traps Carried 1 | . . . . . . . . . 1 1 Machines | -11 -10 -9 -8 -7 -7 -6 -5 -4 -4 -3 ---------- Run | Yrd Mat Mat Mat Fac DSF Fac Fac Fac DSF Res Machines Disabled . | . . . . . . . . . . . Max in Single Turn . | . . . . . . . . . . . Machines Repaired . | . . . . . . . . . . . Machines Dismantled . | . . . . . . . . . . . Machines Sabotaged . | . . . . . . . . . . . Overloaded Fab Kills . | . . . . . . . . . . . Hacking | -11 -10 -9 -8 -7 -7 -6 -5 -4 -4 -3 --------- Run | Yrd Mat Mat Mat Fac DSF Fac Fac Fac DSF Res Machines Accessed 10 | . 1 1 . 2 . 3 1 1 . 1 Terminals 10 | . 1 1 . 2 . 3 1 1 . 1 Fabricators . | . . . . . . . . . . . Repair Stations . | . . . . . . . . . . . Recycling Units . | . . . . . . . . . . . Scanalyzers . | . . . . . . . . . . . Garrison Access . | . . . . . . . . . . . Total Hacks 20 | . 3 3 . 3 . 6 2 1 . 2 Successful 9 | . 1 1 . 1 . 2 2 1 . 1 Failed 11 | . 2 2 . 2 . 4 . . . 1 Catastrophic 3 | . . . . 2 . . . . . 1 Database Lockouts . | . . . . . . . . . . . Manual 10 | . 3 4 . . . . 3 . . . Terminals 20 | . 3 3 . 3 . 6 2 1 . 2 Fabricators . | . . . . . . . . . . . Repair Stations . | . . . . . . . . . . . Recycling Units . | . . . . . . . . . . . Scanalyzers . | . . . . . . . . . . . Garrison Access . | . . . . . . . . . . . Terminal Hacks 9 | . 1 1 . 1 . 2 2 1 . 1 Robot Analysis 2 | . 1 1 . . . . . . . . Open DSF 5 | . . . . 1 . 1 2 1 . . Level Access Points 2 | . . . . . . 1 . . . 1 Fabricator Hacks . | . . . . . . . . . . . Repair Station Hacks . | . . . . . . . . . . . Recycling Unit Hacks . | . . . . . . . . . . . Scanalyzer . | . . . . . . . . . . . Garrison Access Hacks . | . . . . . . . . . . . Unauthorized Hacks . | . . . . . . . . . . . Terminals . | . . . . . . . . . . . Fabricators . | . . . . . . . . . . . Repair Stations . | . . . . . . . . . . . Recycling Units . | . . . . . . . . . . . Scanalyzers . | . . . . . . . . . . . Garrison Access . | . . . . . . . . . . . Data Cores Recovered . | . . . . . . . . . . . Used . | . . . . . . . . . . . Hacking Detections 6 | . 1 1 . 1 . 2 . . . 1 Full Trace Events 5 | . 1 1 . 1 . 1 . . . 1 Feedback Events 1 | . . 1 . . . . . . . . Corruption 1 | . . 1 . . . . . . . . Feedback Blocked . | . . . . . . . . . . . Robot Schematics Acquired . | . . . . . . . . . . . Robots Built . | . . . . . . . . . . . Authchips . | . . . . . . . . . . . Time . | . . . . . . . . . . . Total Robot Build Rating . | . . . . . . . . . . . Part Schematics Acquired . | . . . . . . . . . . . Parts Built . | . . . . . . . . . . . Authchips . | . . . . . . . . . . . Time . | . . . . . . . . . . . Total Part Build Rating . | . . . . . . . . . . . Parts Repaired . | . . . . . . . . . . . Time . | . . . . . . . . . . . Parts Recycled . | . . . . . . . . . . . Recycled Matter . | . . . . . . . . . . . Retrieved Matter . | . . . . . . . . . . . Retrieved Components . | . . . . . . . . . . . Parts Scanalyzed . | . . . . . . . . . . . Part Schematics Acquired . | . . . . . . . . . . . Parts Damaged . | . . . . . . . . . . . Bothacking | -11 -10 -9 -8 -7 -7 -6 -5 -4 -4 -3 ------------ Run | Yrd Mat Mat Mat Fac DSF Fac Fac Fac DSF Res Used RIF Installer . | . . . . . . . . . . . Robots Hacked . | . . . . . . . . . . . Non-combat . | . . . . . . . . . . . Combat . | . . . . . . . . . . . Robot Hacks Applied . | . . . . . . . . . . . Relay Couplers Released . | . . . . . . . . . . . Fabnet Peak Effective % . | . . . . . . . . . . . Robots Rewired . | . . . . . . . . . . . Allies Hacked . | . . . . . . . . . . . Hacks Repelled . | . . . . . . . . . . . Allies | -11 -10 -9 -8 -7 -7 -6 -5 -4 -4 -3 -------- Run | Yrd Mat Mat Mat Fac DSF Fac Fac Fac DSF Res Total Allies . | . . . . . . . . . . . Largest Group . | . . . . . . . . . . . Highest-Rated Group . | . . . . . . . . . . . Highest-Rated Ally . | . . . . . . . . . . . Total Orders . | . . . . . . . . . . . Ally Attacks . | . . . . . . . . . . . Total Damage . | . . . . . . . . . . . Kills . | . . . . . . . . . . . Allies Corrupted . | . . . . . . . . . . . Allies Melted . | . . . . . . . . . . . Intel | -11 -10 -9 -8 -7 -7 -6 -5 -4 -4 -3 ------- Run | Yrd Mat Mat Mat Fac DSF Fac Fac Fac DSF Res Robot Analysis Total 2 | . 1 1 . . . . . . . . Derelict Logs Recovered . | . . . . . . . . . . . Drone Launches . | . . . . . . . . . . . Drone Recoveries . | . . . . . . . . . . . Exploration | -11 -10 -9 -8 -7 -7 -6 -5 -4 -4 -3 ------------- Run | Yrd Mat Mat Mat Fac DSF Fac Fac Fac DSF Res Turns Passed 648 | 11 30 49 44 37 71 135 27 2 76 166 Spaces Moved 1641 | 19 63 92 78 117 148 485 106 5 157 371 Core 75 | 19 28 . . . . . . . . 28 Treads . | . . . . . . . . . . . Legs . | . . . . . . . . . . . Wheels . | . . . . . . . . . . . Hover . | . . . . . . . . . . . Flight 1566 | . 35 92 78 117 148 485 106 5 157 343 Fastest Speed 20 | 50 32 29 26 23 23 20 23 26 26 37 Average Speed 29 | 50 40 29 26 23 23 22 25 26 31 40 Slowest Speed 115 | 50 50 29 26 23 23 26 26 26 115 50 Overloaded Moves . | . . . . . . . . . . . Propulsion Burnouts . | . . . . . . . . . . . Robots Hopped 25 | . 1 2 . 4 1 1 . . 2 14 Cave-ins Triggered . | . . . . . . . . . . . Exploration Rate (%) 27 | 3 20 17 11 4 93 15 4 . 95 12 Regions Visited 10 Branch Regions . Pre-discovered Areas . | . . . . . . . . . . . Known Exits Taken 3 | . . . . 1 . 1 . 1 . . Unknown Exits Taken 5 | 1 1 1 1 . . . 1 . . . Scrap Searched . | . . . . . . . . . . . Spaces Dug 13 | . . 5 1 2 1 1 . . . 3 Terrain Destroyed 13 | . . 5 1 2 1 1 . . . 3 Melee 13 | . . 5 1 2 1 1 . . . 3 Projectile . | . . . . . . . . . . . AOE . | . . . . . . . . . . . Terrain Rammed . | . . . . . . . . . . . Walls Destroyed . | . . . . . . . . . . . Machines Disabled . | . . . . . . . . . . . Actions | -11 -10 -9 -8 -7 -7 -6 -5 -4 -4 -3 --------- Run | Yrd Mat Mat Mat Fac DSF Fac Fac Fac DSF Res Total 1727 | 19 65 100 88 117 179 506 105 4 180 364 Wait 19 | . . . . . . 19 . . . . Move 1585 | 18 60 87 77 110 145 482 105 4 152 345 Hop 21 | . 1 2 . 2 1 1 . . 2 12 Pick Up 11 | . 2 2 2 . 1 . . . 4 . Fast Attach 14 | 1 2 3 . 1 3 . . . 3 1 Attach 8 | . . 1 1 1 . 3 . . 2 . Detach . | . . . . . . . . . . . Swap 3 | . . . 1 1 1 . . . . . Drop 2 | . . . . . 1 . . . 1 . Fire . | . . . . . . . . . . . Melee 21 | . . 5 7 2 1 1 . . . 5 Ram . | . . . . . . . . . . . Kick . | . . . . . . . . . . . Crush . | . . . . . . . . . . . Escape Stasis 43 | . . . . . 26 . . . 16 1 Rewire . | . . . . . . . . . . . Trap . | . . . . . . . . . . . Miscellaneous . | . . . . . . . . . . . Route ------- -11/Scrapyard -10/Materials -9/Materials (discovered 2 exits: [*Mat] / [*Sto]) -8/Materials -7/Factory (discovered 2 exits: [*Low] / DSF) -7/DSF -6/Factory (discovered 4 exits: *Fac x4) -5/Factory -4/Factory -4/DSF -3/Research (discovered 4 exits: Res x3 / [*Tes]) History --------- Turn | Location | Event 4 | -11/Scrapyard | Discovered new exit (range 15) 12 | -11/Scrapyard | Entered Materials 39 | -10/Materials | Discovered new exit (range 12) 42 | -10/Materials | Entered another Materials area 42 | -9/Materials | Evolved 2 slots: Propulsion x1, Utility x1 84 | -9/Materials | Discovered new exit (range 11) 87 | -9/Materials | Discovered new exit (range 12) 91 | -9/Materials | Entered another Materials area 91 | -8/Materials | Evolved 2 slots: Propulsion x1, Utility x1 134 | -8/Materials | Discovered new exit (range 4) 135 | -8/Materials | Entered Factory 135 | -7/Factory | Evolved 2 slots: Propulsion x1, Utility x1 153 | -7/Factory | Discovered new exit (range 15) 168 | -7/Factory | Identified exit to DSF 172 | -7/Factory | Entered DSF 176 | -7/DSF | Discovered new exit (range 16) 193 | -7/DSF | Additional patrols routed to DSF 243 | -7/DSF | Entered Factory 243 | -6/Factory | Evolved 2 slots: Propulsion x1, Utility x1 305 | -6/Factory | Identified exit to Factory 378 | -6/Factory | Entered another Factory area 378 | -5/Factory | Evolved 2 slots: Propulsion x1, Utility x1 382 | -5/Factory | Identified exit to DSF 382 | -5/Factory | Discovered new exit (range 16) 405 | -5/Factory | Entered another Factory area 405 | -4/Factory | Evolved 2 slots: Propulsion x1, Utility x1 407 | -4/Factory | Identified exit to DSF 407 | -4/Factory | Entered DSF 411 | -4/DSF | Discovered new exit (range 16) 433 | -4/DSF | Additional patrols routed to DSF 483 | -4/DSF | Entered Research 483 | -3/Research | Evolved 2 slots: Utility x2 503 | -3/Research | Lost 11 parts (1p6n3u1w) 503 | -3/Research | Discovered new exit (range 13) 507 | -3/Research | Identified exit to Research 649 | -3/Research | Self-destructed Last Messages --------------- 00603_ Impulse Thruster Array destroyed. 00603_ Slug penetrates Wall. 00604_ Impulse Thruster Array destroyed. 00606_ K-01 Serf collects debris. 00606_ T-07 Excavator destroyed. 00606_ Penetrated by Slug. 00606_ Slug penetrates Wall. 00613_ O-24 Administrator: "IFF HANDSHAKE FAILED. SECURING TERMINAL." 00618_ ALERT: Hostiles spotted, dispatching reinforcements to Terminal R012. 00622_ W-44 Eye sends out distress signal. 00624_ Hacking Suite destroyed. 00626_ System corrupted: Matter fused (-9). 00628_ Hacking Suite destroyed. 00634_ Slug penetrates Wall. 00634_ Impulse Thruster Array destroyed. 00643_ Recycling Unit disabled. 00647_ Biometal Medium Treads tumbles out of recycling unit. Map ----- +----------------------------------------------------+ | ???????????????????????????????????????????????? | | ???????????????????????????????????????????????? | | ???????????????????????????????????????????????? | | ???????????????????????????????????????????????? | | ???????????????????????????????????????????????? | | ???????????????????????????????????????????????? | | ???????????????????????????????????????????????? | | ????????????????????? ?????????????????????????? | | ???????????????????? ???????????????????????? | | ???????????????????? #??????????????????????? | | ????????????????? #??????????????????????? | | #######?????????? ###+#??????????????????? | | ? #????????? ??????????????????? | | ?? #????????? ???????????????????? | | ??? #????????? ????????????????????? | | ???? /????????# ?????????????????????? | | ?##### #????????# #??????????????????????? | | ? # #????????# #??????????????????????? | | ? # ########## #??????????????????????? | | ?"" # #??????????????????????? | | """ / #??????????????????????? | | """ # #??????????????????????? | | """ # #??????????????????????? | | """ # ########## #??????????????????????? | | """ # # # ###########????????????? | | """ # # != # #@ s #????????????? | | # # * =! # # pp= ssp#????????????? | | / # # # """" #????????????? | | ###### # [ # # p""Y " #????????????? | | # + + #????????????? | | ###### # # # #????????????? | | ?????# # !# # #????????????? | | ###### # # # #????????????? | | #########################????????